bitfinex-derivatives/quotes_SOLF0:USTF0_20240920
["timestamp","ask_amount","ask_price","bid_price","bid_amount"]
[1726811211393,1.6751,147.61,147.55,3.3884]
[1726811211685,3.4594,147.62,147.53,26.02]
[1726811211882,3.4594,147.62,147.56,3.3882]
[1726811211883,3.3873,147.61,147.56,3.3882]
[1726811212686,3.3874,147.6,147.55,3.3884]
[1726811212887,29.4581,147.66,147.54,3.3677]
[1726811213091,29.4581,147.66,147.54,5.01]
[1726811213284,3.387,147.62,147.54,5.01]
[1726811213795,3.387,147.62,147.57,3.3878]
[1726811213996,1.6971,147.69,147.58,26.02]
[1726811214288,1.6971,147.69,147.59,3.3875]
[1726811214491,1.6971,147.69,147.58,26.02]
[1726811214894,1.6971,147.69,147.61,3.3869]
[1726811215289,28.02,147.7,147.58,26.02]
[1726811215599,2.0,147.7,147.6,26.02]
[1726811215786,2.0,147.7,147.61,6.71427615]
[1726811216595,2.0,147.7,147.61,8.50467615]
[1726811217193,2.0,147.7,147.62,26.02]
[1726811217397,2.0,147.7,147.68,3.3854]
[1726811217591,2.0,147.7,147.65,26.02]
[1726811218688,2.0,147.7,147.67,26.02]
[1726811218907,2.0,147.7,147.68,1.7903]
[1726811219099,2.0,147.7,147.68,3.4177]
[1726811219293,27.7373,147.8,147.68,3.4177]
[1726811219493,27.7373,147.8,147.68,5.0706]
[1726811220295,27.7373,147.8,147.69,3.385]
[1726811220499,27.7373,147.8,147.7,3.41381368]
[1726811220899,27.7373,147.8,147.68,5.0706]
[1726811221196,1.7514,147.81,147.71,26.02]
[1726811221502,1.7514,147.81,147.71,29.34103596]
[1726811222098,3.3832,147.78,147.71,29.34103596]
[1726811222691,3.3831,147.79,147.71,29.34103596]
[1726811223094,27.7595,147.84,147.72,3.3844]
[1726811223296,27.7595,147.84,147.71,29.34103596]
[1726811223297,3.3833,147.78,147.71,29.34103596]
[1726811223803,27.7595,147.84,147.73,3.3842]
[1726811224097,3.3834,147.78,147.73,3.3842]
[1726811224310,27.7595,147.84,147.73,3.3842]
[1726811224502,3.3832,147.78,147.73,3.3842]
[1726811224800,27.7595,147.84,147.68,5.0706]
[1726811224801,26.02,147.77,147.68,5.0706]
[1726811225193,26.02,147.77,147.68,8.4559]
[1726811225399,26.02,147.77,147.68,5.0706]
[1726811226099,3.3844,147.73,147.68,5.0706]
[1726811227796,3.3844,147.73,147.69,3.3852]
[1726811227993,3.3844,147.73,147.68,5.0706]
[1726811228197,3.3846,147.72,147.68,5.0706]
[1726811228595,26.02,147.77,147.69,3.32667298]
[1726811229505,26.02,147.77,147.68,5.0706]
[1726811229895,3.3848,147.72,147.68,5.0706]
[1726811230095,26.02,147.77,147.68,5.0706]
[1726811230305,1.6417,147.76,147.68,1.7903]
[1726811230508,26.02,147.75,147.64,3.3862]
[1726811230895,26.02,147.75,147.62,31.3272]
[1726811231095,3.3852,147.7,147.65,3.386]
[1726811232101,3.3854,147.69,147.65,3.386]
[1726811232501,26.02,147.75,147.64,3.3864]
[1726811232802,26.02,147.75,147.62,31.3272]
[1726811233203,3.3853,147.69,147.62,31.3272]
[1726811233506,3.3853,147.69,147.65,3.3861]
[1726811234508,26.02,147.75,147.62,31.3272]
[1726811235101,3.3849,147.71,147.66,3.3858]
[1726811235510,26.02,147.75,147.62,31.3272]
[1726811236211,26.02,147.75,147.64,3.3862]
[1726811236413,26.02,147.75,147.62,31.3272]
[1726811236911,3.3854,147.69,147.62,31.3272]
[1726811237709,3.3854,147.69,147.65,3.386]
[1726811237910,16.25,147.75,147.65,16.25]
[1726811238708,16.25,147.75,147.67,3.3857]
[1726811239212,16.25,147.75,147.65,19.636]
[1726811240117,16.25,147.75,147.67,3.3857]
[1726811240506,16.25,147.75,147.65,16.25]
[1726811240707,16.25,147.73,147.64,16.25]
[1726811241108,16.25,147.73,147.65,3.3861]
[1726811242421,3.3854,147.69,147.65,3.3861]
[1726811242612,16.25,147.75,147.66,19.6359]
[1726811242814,3.3852,147.7,147.66,19.6359]
[1726811243014,16.25,147.75,147.66,16.25]
[1726811243613,16.25,147.71,147.62,1.7155]
[1726811243813,1.6804,147.7,147.62,1.7155]
[1726811244022,1.6804,147.7,147.61,6.71097615]
[1726811244620,1.6804,147.7,147.62,3.3868]
[1726811244821,3.3861,147.66,147.62,3.3868]
[1726811245017,1.6804,147.7,147.63,16.25]
[1726811245222,1.6804,147.7,147.64,3.3862]
[1726811245421,1.6804,147.7,147.63,16.25]
[1726811245626,16.25,147.73,147.65,16.25]
[1726811245826,16.25,147.73,147.65,22.95398546]
[1726811246027,16.25,147.73,147.65,19.56798546]
[1726811246625,3.3855,147.68,147.65,19.56798546]
[1726811247224,17.9227,147.75,147.65,19.56798546]
[1726811247730,3.3852,147.7,147.66,3.3858]
[1726811247930,17.9227,147.75,147.65,19.56798546]
[1726811248323,17.9227,147.75,147.66,3.3859]
[1726811248722,17.9227,147.75,147.65,19.56798546]
[1726811248928,3.3854,147.69,147.65,22.95398546]
[1726811249129,17.9227,147.75,147.65,22.95398546]
[1726811250127,3.3853,147.69,147.65,22.95398546]
[1726811250329,17.9227,147.75,147.66,3.3859]
[1726811250834,1.6727,147.75,147.69,16.25]
[1726811251626,1.6727,147.75,147.69,19.59699546]
[1726811252026,3.3331,147.76,147.69,19.59699546]
[1726811252228,1.6417,147.76,147.71,16.25]
[1726811252440,3.3836,147.77,147.72,3.3844]
[1726811252626,1.7986,147.8,147.72,3.3844]
[1726811252936,3.3838,147.76,147.71,19.6346]
[1726811253330,3.3838,147.76,147.71,16.25]
[1726811253532,3.3836,147.76,147.72,3.3845]
[1726811254133,1.7986,147.8,147.71,16.25]
[1726811254933,3.3836,147.77,147.72,3.3844]
[1726811255140,3.3836,147.77,147.71,16.25]
[1726811255337,3.3832,147.78,147.73,19.6342]
[1726811255634,1.7986,147.8,147.73,16.25]
[1726811255838,3.3833,147.78,147.73,19.6343]
[1726811256135,1.7986,147.8,147.73,16.25]
[1726811256437,3.3837,147.76,147.71,16.25]
[1726811256642,18.0486,147.8,147.72,3.31595341]
[1726811257038,3.3837,147.76,147.72,3.31595341]
[1726811257341,18.0486,147.8,147.72,3.31595341]
[1726811257534,3.3841,147.75,147.72,3.31595341]
[1726811258640,18.0486,147.8,147.73,3.3843]
[1726811258834,1.7986,147.8,147.73,3.3843]
[1726811259033,3.3834,147.78,147.73,3.3843]
[1726811259239,18.0486,147.8,147.71,19.69257854]
[1726811259637,3.3837,147.76,147.71,19.69257854]
[1726811260638,3.3835,147.77,147.71,19.69257854]
[1726811261035,3.3835,147.77,147.73,3.3842]
[1726811261530,3.3837,147.76,147.71,19.69257854]
[1726811262136,16.25,147.78,147.67,3.4821]
[1726811262336,16.25,147.78,147.68,16.25]
[1726811263040,16.25,147.78,147.69,3.3851]
[1726811263429,16.25,147.78,147.68,16.25]
[1726811264543,3.3842,147.74,147.7,3.3849]
[1726811264744,18.0486,147.8,147.7,16.25]
[1726811265239,18.0486,147.8,147.71,3.3846]
[1726811265837,3.3839,147.75,147.71,3.3846]
[1726811268339,18.0486,147.8,147.7,16.25]
[1726811269143,3.3839,147.75,147.72,3.3845]
[1726811269643,18.0486,147.8,147.72,3.3845]
[1726811269844,1.7986,147.8,147.73,3.3843]
[1726811270443,3.3837,147.76,147.72,19.6345]
[1726811271045,3.3835,147.77,147.73,3.3843]
[1726811274645,3.3837,147.76,147.73,3.3843]
[1726811277047,3.3839,147.75,147.72,3.3845]
[1726811277254,3.3839,147.75,147.7,16.25]
[1726811278353,3.3845,147.73,147.68,135.42]
[1726811278658,3.3845,147.73,147.69,16.25]
[1726811278954,3.3842,147.74,147.7,3.3848]
[1726811279350,3.3842,147.74,147.69,16.25]
[1726811279551,1.7986,147.8,147.71,16.25]
[1726811279750,18.0486,147.8,147.71,16.25]
[1726811279951,18.0486,147.8,147.71,19.6347]
[1726811280449,18.0486,147.8,147.71,16.25]
[1726811280853,20.28,147.97,147.78,16.25]
[1726811281151,3.503,147.88,147.82,16.25]
[1726811281350,1.7717,147.88,147.82,19.6820782]
[1726811281552,3.3807,147.89,147.82,19.6820782]
[1726811281751,1.7717,147.91,147.82,19.6820782]
[1726811282050,3.3805,147.9,147.84,16.25]
[1726811282257,1.7717,147.91,147.86,16.25]
[1726811282649,16.25,147.95,147.86,16.25]
[1726811282956,18.0217,147.95,147.86,19.58401001]
[1726811283150,1.7717,147.95,147.86,19.58401001]
[1726811283350,3.3796,147.94,147.88,16.25]
[1726811283554,16.25,148.03,147.93,16.25]
[1726811283755,3.3786,147.99,147.93,19.6297]
[1726811283946,1.7828,148.02,147.93,16.25]
[1726811284153,5.0934645,148.02,147.93,16.25]
[1726811284354,1.7828,148.02,147.95,16.25]
[1726811285457,3.3782,148.0,147.95,16.25]
[1726811285854,1.7828,148.02,147.95,16.25]
[1726811286053,3.378,148.01,147.96,16.25]
[1726811286253,1.7828,148.02,147.96,16.25]
[1726811287350,1.7828,148.02,147.97,3.3788]
[1726811287559,5.0445,148.03,147.97,3.3788]
[1726811288057,3.3773,148.04,147.99,16.25]
[1726811289057,3.3767,148.07,148.01,3.3779]
[1726811289358,3.4653,148.1,148.0,16.25]
[1726811289557,3.4653,148.1,148.0,19.65137893]
[1726811289757,16.25,148.09,147.98,16.25]
[1726811290157,3.3771,148.05,147.99,3.3782]
[1726811290361,3.4653,148.1,148.0,16.25]
[1726811290558,19.62974854,148.14,148.05,16.25]
[1726811290861,16.25,148.14,148.05,16.25]
[1726811291252,19.63785994,148.14,148.05,16.25]
[1726811291656,16.25,148.14,148.05,16.25]
[1726811291853,3.3761,148.1,148.05,16.25]
[1726811292961,3.3757,148.11,148.05,19.627]
[1726811294062,3.375,148.14,148.08,3.3762]
[1726811294253,17.923,148.17,148.07,16.25]
[1726811294961,17.923,148.17,148.07,19.6265]
[1726811295159,1.673,148.17,148.11,16.25]
[1726811295358,3.45173719,148.26,148.11,16.25]
[1726811295558,3.3741,148.18,148.13,3.3751]
[1726811296362,3.3741,148.18,148.12,3.3754]
[1726811296558,3.3741,148.18,148.11,19.54899439]
[1726811296758,3.3739,148.19,148.13,3.3751]
[1726811296957,3.3739,148.19,148.13,16.25]
[1726811297161,3.4173,148.21,148.13,16.25]
[1726811297362,3.374,148.19,148.13,19.625]
[1726811297664,3.4173,148.21,148.02,137.0144]
[1726811297665,16.25,148.15,148.02,136.9344]
[1726811297860,36.53,148.2,148.02,21.41392587]
[1726811297861,3.3768,148.06,148.02,21.41392587]
[1726811298065,25.94,148.12,148.02,1.7744]
[1726811298261,29.3853,148.14,148.02,27.7144]
[1726811298466,3.376,148.1,148.04,3.3772]
[1726811298667,29.3853,148.14,148.04,3.3772]
[1726811299463,25.94,148.12,148.01,1.7399]
[1726811299657,25.94,148.08,147.98,135.16]
[1726811299863,1.6654,148.07,147.98,135.16]
[1726811300266,25.94,148.05,147.98,135.16]
[1726811300566,3.378,148.01,147.98,135.16]
[1726811301563,25.94,148.05,147.93,29.2833]
[1726811302370,3.3785,147.99,147.93,29.2833]
[1726811303073,3.3785,147.99,147.93,32.663]
[1726811304271,3.3787,147.98,147.93,32.663]
[1726811304477,1.6735,148.04,147.93,29.2833]
[1726811304968,1.6735,148.04,147.96,25.94]
[1726811305373,5.0508,148.04,147.96,25.94]
[1726811305560,1.6735,148.04,147.96,25.94]
[1726811305766,1.6735,148.04,147.98,25.94]
[1726811305967,1.6654,148.07,147.98,25.94]
[1726811306162,1.6654,148.07,147.96,25.94]
[1726811307070,1.6654,148.07,147.99,25.94]
[1726811307471,1.6654,148.07,147.97,3.41154682]
[1726811307669,1.6654,148.07,147.98,25.94]
[1726811307869,1.6654,148.07,147.98,29.3186]
[1726811308266,3.3774,148.04,147.98,29.3186]
[1726811309175,3.3775,148.03,147.98,29.3186]
[1726811309363,1.6654,148.07,147.98,25.94]
[1726811309671,3.3774,148.04,147.98,25.94]
[1726811310665,3.377,148.06,148.0,3.378]
[1726811310872,1.6654,148.07,147.98,25.94]
[1726811311473,1.6654,148.07,147.96,3.30787428]
[1726811311774,3.3781,148.01,147.95,29.3191]
[1726811311970,1.6654,148.07,147.96,3.45961473]
[1726811312166,25.94,148.06,147.95,25.94]
[1726811312375,3.3783,148.0,147.94,3.3794]
[1726811312572,3.3783,148.0,147.93,3.3433]
[1726811312775,25.94,148.06,147.93,3.3433]
[1726811313074,25.94,148.04,147.93,3.3433]
[1726811313273,1.7527,148.03,147.93,3.3433]
[1726811313475,1.7527,148.03,147.93,6.7229]
[1726811314177,3.3787,147.98,147.93,6.7229]
[1726811314469,3.3793,147.96,147.92,135.14]
[1726811314675,29.34985934,148.02,147.92,135.14]
[1726811314880,1.6819,148.01,147.92,135.14]
[1726811315371,1.7792,148.0,147.92,135.14]
[1726811315977,3.379,147.97,147.92,135.14]
[1726811316473,3.379,147.97,147.92,138.5198]
[1726811318385,3.3787,147.98,147.93,3.3796]
[1726811318675,1.6819,148.01,147.92,25.94]
[1726811320273,1.7527,148.03,147.92,25.94]
[1726811320476,1.7527,148.03,147.95,25.94]
[1726811320778,25.94,148.09,147.97,25.94]
[1726811320979,3.5665,148.11,147.99,25.94]
[1726811320980,3.3774,148.04,147.99,25.94]
[1726811321771,3.3771,148.05,148.0,3.3781]
[1726811321975,1.7728,148.1,148.0,3.3781]
[1726811322382,3.3775,148.03,147.98,1.7574]
[1726811322576,25.94,148.09,147.98,1.7574]
[1726811322783,25.94,148.09,147.97,1.8094]
[1726811323379,3.378,148.01,147.97,1.8094]
[1726811324982,3.378,148.01,147.97,5.1882]
[1726811325371,25.94,148.09,147.97,27.7494]
[1726811325874,3.3775,148.03,147.99,3.3784]
[1726811326069,1.7728,148.1,147.99,25.94]
[1726811326472,1.7728,148.1,148.0,3.3781]
[1726811327379,3.3772,148.05,148.0,3.3781]
[1726811327682,1.7728,148.1,147.99,25.94]
[1726811327983,1.7728,148.1,147.99,29.3182]
[1726811328477,3.3777,148.03,147.99,25.94]
[1726811328787,1.7728,148.1,147.99,25.94]
[1726811329277,1.7728,148.1,147.97,1.8094]
[1726811329278,25.94,148.09,147.97,1.8094]
[1726811329483,3.3784,148.0,147.97,1.8094]
[1726811330282,3.378,148.01,147.97,5.1881]
[1726811330580,25.94,148.09,147.97,1.8094]
[1726811330781,3.3778,148.02,147.98,3.3785]
[1726811333083,1.7728,148.1,147.99,25.94]
[1726811333683,3.3772,148.05,148.01,3.3779]
[1726811333884,1.7728,148.1,147.99,25.94]
[1726811334781,3.3773,148.04,148.0,3.3781]
[1726811336186,3.3771,148.05,148.01,3.3779]
[1726811336486,1.7728,148.1,147.99,25.94]
[1726811336684,1.7728,148.1,147.97,1.8094]
[1726811336685,3.3769,148.06,148.02,3.3776]
[1726811337986,3.3769,148.06,148.02,19.5876]
[1726811338186,3.3771,148.05,148.02,16.21]
[1726811339382,1.7728,148.1,148.02,16.21]
[1726811339583,3.3773,148.04,148.02,16.21]
[1726811340285,3.3775,148.03,148.02,16.21]
[1726811340585,17.9828,148.1,148.0,16.21]
[1726811340987,17.9828,148.1,148.01,3.3779]
[1726811341489,3.3772,148.05,148.01,3.3779]
[1726811342392,3.3772,148.05,148.02,16.21]
[1726811342791,3.377,148.05,148.02,19.5877]
[1726811343492,3.377,148.05,148.02,16.21]
[1726811343793,3.3769,148.06,148.02,16.21]
[1726811343994,1.7728,148.1,148.04,16.21]
[1726811344393,16.21,148.14,148.06,16.21]
[1726811344394,1.7671,148.14,148.06,16.21]
[1726811344595,1.7671,148.14,148.06,19.5868]
[1726811345294,1.7671,148.14,148.06,16.21]
[1726811345894,3.376,148.1,148.06,19.5868]
[1726811347502,1.7671,148.14,148.06,16.21]
[1726811348104,17.9771,148.14,148.04,19.5872]
[1726811348304,1.7671,148.14,148.01,1.7233]
[1726811348501,16.21,148.09,147.99,16.21]
[1726811348798,16.21,148.09,148.0,16.21]
[1726811349106,16.21,148.13,148.03,16.21]
[1726811349309,16.21,148.13,148.0,16.21]
[1726811349310,16.21,148.13,148.05,16.21]
[1726811349504,1.7671,148.14,148.07,16.21]
[1726811350301,3.3763,148.09,148.07,16.21]
[1726811352495,17.9771,148.14,148.05,16.21]
[1726811352699,16.21,148.11,148.01,135.12]
[1726811352906,16.21,148.11,148.01,151.33]
[1726811353100,3.3771,148.05,148.01,154.7079]
[1726811353302,16.21,148.11,148.01,151.33]
[1726811353600,3.3763,148.09,148.04,3.3771]
[1726811353804,1.7671,148.14,148.04,1.7111]
[1726811354005,1.7671,148.14,148.09,16.21]
[1726811354204,3.3756,148.12,148.09,16.21]
[1726811354507,6.7874865,148.18,148.09,16.21]
[1726811354998,3.4796,148.18,148.09,16.21]
[1726811356106,6.86519193,148.18,148.08,3.3761]
[1726811356505,32.81519193,148.18,148.07,25.95]
[1726811356705,3.3758,148.11,148.07,25.95]
[1726811357298,32.81519193,148.18,148.07,25.95]
[1726811357506,32.81519193,148.18,148.06,3.31599567]
[1726811358209,32.81519193,148.18,148.05,29.4663]
[1726811358601,3.3759,148.1,148.05,29.4663]
[1726811359005,32.81519193,148.18,148.06,3.3766]
[1726811359006,3.3757,148.11,148.06,3.3766]
[1726811359504,3.3757,148.11,148.05,32.87112302]
[1726811360402,3.3757,148.11,148.06,3.3767]
[1726811360706,6.86519193,148.18,148.07,25.95]
[1726811361315,3.4796,148.18,148.09,29.3259]
[1726811361807,3.3751,148.14,148.09,29.3259]
[1726811362112,3.3751,148.14,148.1,3.3759]
[1726811362503,3.3751,148.14,148.09,25.95]
[1726811362902,3.4796,148.18,148.09,29.326]
[1726811363508,3.3751,148.14,148.09,29.326]
[1726811366720,3.3752,148.13,148.09,29.326]
[1726811367420,3.375,148.14,148.09,25.95]
[1726811367826,3.4796,148.18,148.09,25.95]
[1726811368026,3.3751,148.14,148.1,3.3757]
[1726811369214,3.3754,148.13,148.09,29.3261]
[1726811369719,3.3763,148.09,148.05,36.24802302]
[1726811369920,25.95,148.16,148.04,136.8311]
[1726811370121,25.95,148.14,148.04,135.12]
[1726811370319,3.3767,148.07,148.04,135.12]
[1726811370716,3.3767,148.07,148.02,3.3776]
[1726811371225,3.3767,148.07,148.03,3.3775]
[1726811372717,3.3763,148.08,148.04,3.3771]
[1726811372922,1.7529,148.11,148.03,25.95]
[1726811373117,1.7918,148.15,148.05,25.95]
[1726811373318,3.5447,148.15,148.06,3.439654]
[1726811373520,3.5447,148.15,148.06,5.192954]
[1726811374325,3.3756,148.12,148.06,5.192954]
[1726811374824,3.3756,148.12,148.07,3.3765]
[1726811375319,25.95,148.14,148.03,25.95]
[1726811375620,25.95,148.14,148.03,29.3275]
[1726811375822,3.5447,148.15,148.0,25.95]
[1726811376013,25.95,148.12,148.0,25.95]
[1726811376217,5.20430216,148.11,148.0,25.95]
[1726811376417,3.377,148.06,148.01,3.3778]
[1726811377921,1.7883,148.11,148.03,3.3773]
[1726811378622,3.3767,148.07,148.03,3.3773]
[1726811380925,1.7883,148.11,148.04,3.377]
[1726811381126,1.7883,148.11,148.02,25.95]
[1726811381528,3.3765,148.08,148.04,3.3772]
[1726811382022,1.7883,148.11,148.02,25.95]
[1726811382220,3.3767,148.07,148.03,3.3774]
[1726811382526,1.7883,148.11,148.0,25.95]
[1726811382728,1.7883,148.11,148.02,25.95]
[1726811383924,1.7883,148.11,147.99,1.6338]
[1726811383925,3.3759,148.1,148.06,3.3767]
[1726811384120,1.7883,148.11,148.05,16.2]
[1726811384524,3.3764,148.08,148.04,16.2]
[1726811384730,1.7883,148.11,148.04,16.2]
[1726811386628,3.3761,148.09,148.04,19.5772]
[1726811388632,3.3764,148.08,148.04,19.5772]
[1726811389436,1.7883,148.11,148.04,19.5772]
[1726811389739,1.7883,148.11,148.02,16.2]
[1726811391136,3.377,148.06,148.02,16.2]
[1726811391436,3.377,148.06,148.02,19.5777]
[1726811392230,3.377,148.05,148.02,19.5777]
[1726811392436,1.7883,148.11,147.96,135.12]
[1726811392631,16.2,148.04,147.96,135.12]
[1726811392930,1.7883,148.11,147.96,135.12]
[1726811393240,1.7189,148.03,147.96,135.12]
[1726811393435,16.2,148.02,147.96,135.12]
[1726811393635,3.4258,148.02,147.94,1.7213]
[1726811393940,3.3788,147.98,147.94,1.7213]
[1726811394439,3.3789,147.97,147.93,21.29413836]
[1726811394638,3.3789,147.97,147.93,16.2]
[1726811395036,3.3791,147.96,147.91,19.5802]
[1726811395342,3.3791,147.96,147.91,22.94925923]
[1726811395542,3.3791,147.96,147.91,19.56905923]
[1726811396142,19.6258,148.02,147.93,16.2]
[1726811396738,3.4258,148.02,147.93,16.2]
[1726811397041,16.2,148.01,147.93,16.2]
[1726811397544,3.4258,148.02,147.93,16.2]
[1726811397740,3.3786,147.98,147.94,3.3794]
[1726811398241,3.3786,147.98,147.93,19.5797]
[1726811398942,3.3782,148.0,147.95,19.5791]
[1726811399444,17.9189,148.03,147.95,16.2]
[1726811400542,17.9189,148.03,147.95,19.5793]
[1726811400742,3.3783,148.0,147.95,19.5793]
[1726811401041,1.7189,148.03,147.96,3.3791]
[1726811401240,3.3781,148.01,147.95,16.2]
[1726811401434,1.7189,148.03,147.97,16.2]
[1726811401740,1.7825,148.07,147.99,16.2]
[1726811402841,3.3776,148.03,147.99,16.2]
[1726811404048,3.3776,148.03,147.99,19.5784]
[1726811404742,3.3605,148.11,148.02,16.2]
[1726811404952,3.3605,148.11,147.97,3.36996321]
[1726811404953,3.3605,148.11,148.04,16.2]
[1726811405155,3.3605,148.11,148.06,16.2]
[1726811405353,1.7208,148.11,148.06,16.2]
[1726811407043,1.7222,148.13,148.06,16.2]
[1726811407442,3.4172,148.15,148.09,16.2]
[1726811408256,3.4172,148.15,148.09,19.5761]
[1726811408455,3.4172,148.15,148.09,16.2]
[1726811408646,3.4172,148.15,148.02,3.3686]
[1726811408647,3.3747,148.16,148.11,19.5755]
[1726811408852,1.6587,148.19,148.11,16.2]
[1726811410855,1.6587,148.19,148.04,135.16]
[1726811411052,16.2,148.16,148.06,16.2]
[1726811411552,1.7128,148.15,148.06,16.2]
[1726811411745,3.4162,148.15,148.06,16.2]
[1726811411946,3.3761,148.1,148.06,16.2]
[1726811412454,19.6162,148.15,148.06,16.2]
[1726811412654,19.6162,148.15,148.05,3.4560562]
[1726811412655,3.4162,148.15,148.08,16.2]
[1726811412851,1.6587,148.19,148.08,16.2]
[1726811413053,21.2397,148.19,148.1,16.2]
[1726811414858,3.3753,148.13,148.1,16.2]
[1726811415553,3.3753,148.13,148.08,3.3763]
[1726811415756,5.0397,148.19,148.06,16.2]
[1726811415954,16.2,148.15,148.06,16.2]
[1726811416758,3.3762,148.09,148.06,16.2]
[1726811421057,3.3759,148.1,148.06,19.5767]
[1726811421260,16.2,148.17,148.08,16.2]
[1726811421651,16.2,148.17,148.08,19.5763]
[1726811422755,3.3755,148.12,148.08,19.5763]
[1726811422950,3.3755,148.12,148.08,16.2]
[1726811425160,3.3753,148.13,148.08,16.2]
[1726811425364,5.0397,148.19,148.08,19.5761]
[1726811425365,16.2,148.18,148.08,19.5761]
[1726811425566,16.2,148.18,148.06,3.30056749]
[1726811425567,5.0397,148.19,148.1,16.2]
[1726811425768,3.3754,148.12,148.1,16.2]
[1726811427968,16.2,148.18,148.09,3.3761]
[1726811428268,16.2,148.18,148.08,16.2]
[1726811428965,3.3753,148.13,148.08,19.5761]
[1726811429164,3.3753,148.13,148.08,16.2]
[1726811430166,3.3753,148.13,148.09,3.376]
[1726811433076,3.3754,148.12,148.09,3.376]
[1726811433574,16.2,148.14,148.03,136.8062]
[1726811433774,16.2,148.14,148.04,16.2]
[1726811433968,16.2,148.14,148.04,19.64613306]
[1726811434176,16.2,148.14,148.06,3.3768]
[1726811434177,19.5556231,148.14,148.06,3.3768]
[1726811434374,19.5556231,148.14,148.04,19.64613306]
[1726811434576,5.0397,148.19,147.96,135.08]
[1726811434577,27.0386,148.17,147.96,135.08]
[1726811434770,16.2,148.08,148.02,1.6944]
[1726811435770,3.31791141,148.09,147.99,16.2]
[1726811435975,16.2,148.06,147.99,16.2]
[1726811436172,16.2,148.08,147.99,16.2]
[1726811436875,3.3771,148.05,148.0,3.378]
[1726811438467,3.3773,148.04,147.99,19.5783]
[1726811438666,3.3773,148.04,147.99,16.2]
[1726811438871,3.3772,148.05,147.99,16.2]
[1726811439073,3.3772,148.05,148.0,3.3781]
[1726811439777,3.3769,148.06,148.01,3.3779]
[1726811439969,3.3769,148.06,148.01,16.2]
[1726811440169,16.2,148.1,148.01,16.2]
[1726811440373,1.7269,148.12,148.04,3.3772]
[1726811440374,17.9269,148.12,148.04,3.3772]
[1726811440582,17.9269,148.12,148.03,16.2]
[1726811440970,3.3763,148.09,148.04,3.3772]
[1726811441173,17.9269,148.12,148.04,3.3772]
[1726811441473,17.9269,148.12,148.03,16.2]
[1726811441681,3.3765,148.08,148.03,19.5774]
[1726811442074,16.2,148.1,148.03,16.2]
[1726811442387,3.3768,148.06,148.03,16.2]
[1726811442676,3.3768,148.06,148.02,3.3777]
[1726811442677,16.2,148.1,148.01,16.2]
[1726811442875,16.2,148.06,147.97,23.10707209]
[1726811443182,16.2,148.04,147.95,16.2]
[1726811443381,19.60349797,148.04,147.95,16.2]
[1726811443579,3.3784,147.99,147.95,16.2]
[1726811443979,3.3782,148.0,147.95,19.5792]
[1726811444282,3.3281,148.05,147.95,16.2]
[1726811444474,1.6806,148.05,147.97,16.2]